bitfinex/quotes_ETHUSD_20241104
["timestamp","ask_amount","ask_price","bid_price","bid_amount"]
[1730733349290,5.38903757,2445.4,2444.9,4.09004]
[1730733349495,5.38903757,2445.4,2444.2,4.1516662]
[1730733349496,4.09056,2444.7,2444.2,4.1516662]
[1730733349802,0.409056,2444.6,2444.2,4.1517162]
[1730733350086,4.1717426,2444.9,2444.2,4.1517162]
[1730733350087,8.18115,2444.7,2444.2,4.1517162]
[1730733350303,4.09055,2444.7,2444.2,4.1517162]
[1730733350449,5.70402298,2445.1,2444.2,4.1517062]
[1730733350450,1.61421298,2445.1,2444.2,4.1517062]
[1730733350660,4.09049,2444.7,2444.3,4.09106]
[1730733350857,8.18085,2444.8,2444.3,4.09106]
[1730733351192,4.09038,2444.8,2444.5,0.7881]
[1730733351695,4.1716326,2444.9,2444.5,4.87888]
[1730733351853,9.56398363,2445.4,2444.6,0.0818091]
[1730733351854,1.99477497,2445.4,2444.6,0.0818091]
[1730733352188,1.99477497,2445.4,2444.6,4.09058]
[1730733352189,4.08984,2445.1,2444.6,4.09058]
[1730733352492,4.08984,2445.1,2444.7,4.09046]
[1730733353197,4.1715326,2445.0,2444.6,3.0]
[1730733353381,4.0902,2444.9,2444.6,3.0]
[1730733353957,4.0902,2444.9,2444.5,0.7881]
[1730733353958,4.09037,2444.8,2444.5,0.7881]
[1730733354858,4.0902,2444.9,2444.5,0.7881]
[1730733355589,4.08995,2445.1,2444.7,4.09047]
[1730733355590,4.08992,2445.1,2444.7,4.09047]
[1730733355956,4.08992,2445.1,2444.6,7.09055]
[1730733356159,4.08992,2445.1,2444.6,11.1811]
[1730733356504,8.17983,2445.1,2444.6,7.09055]
[1730733356666,4.08991,2445.1,2444.7,4.09046]
[1730733357572,4.0899,2445.1,2444.7,4.09046]
[1730733357775,0.0814626,2445.2,2444.7,4.09046]
[1730733358011,0.0814626,2445.2,2444.8,4.0902]
[1730733358012,0.83761298,2445.2,2444.8,4.0902]
[1730733358310,4.08957,2445.3,2444.8,4.0903]
[1730733358686,4.08957,2445.3,2444.7,4.09045]
[1730733358687,4.1711926,2445.2,2444.7,8.18082]
[1730733359087,4.1711926,2445.2,2444.8,4.09029]
[1730733359705,0.0814626,2445.2,2445.0,4.08985]
[1730733360036,4.08956,2445.3,2444.9,7.90972]
[1730733360178,4.1710226,2445.3,2444.9,7.90972]
[1730733360378,4.08956,2445.3,2444.9,7.90972]
[1730733360818,4.1712426,2445.2,2444.9,0.8196]
[1730733360980,0.90243553,2445.3,2444.8,4.09021]
[1730733360981,0.98389813,2445.3,2444.8,4.09021]
[1730733361181,0.92683788,2445.3,2444.9,4.08999]
[1730733361383,0.8061,2445.7,2445.3,4.90857]
[1730733361384,2.11343821,2445.7,2445.3,4.90857]
[1730733361686,4.08816,2446.1,2445.8,0.8191]
[1730733361687,0.84537528,2445.9,2445.8,0.8191]
[1730733361871,1.69075057,2446.2,2446.1,4.08814]
[1730733361872,0.84537528,2446.2,2446.1,4.08814]
[1730733362082,1.69075057,2446.5,2445.8,0.8191]
[1730733362083,4.08763,2446.4,2445.9,4.08839]
[1730733362326,0.84537528,2446.4,2446.0,4.08828]
[1730733362473,4.08805,2446.2,2445.8,0.8191]
[1730733362678,0.0814626,2446.3,2445.4,4.86612]
[1730733362679,0.8705626,2446.1,2445.4,4.86612]
[1730733362985,4.08855,2445.9,2445.4,4.86612]
[1730733363194,1.71593788,2446.1,2445.4,4.86612]
[1730733363195,4.08832,2446.0,2445.5,4.08902]
[1730733363390,4.08832,2446.0,2445.5,8.17806]
[1730733363589,4.87737,2446.1,2445.6,4.08886]
[1730733363796,4.87737,2446.1,2445.7,4.08877]
[1730733364009,8.96565,2446.1,2445.6,4.08886]
[1730733364209,4.87737,2446.1,2445.6,4.08886]
[1730733364410,4.93278528,2446.6,2446.1,4.08806]
[1730733364629,4.08787,2446.3,2445.9,4.90433]
[1730733364794,4.1691026,2446.4,2445.9,8.99271]
[1730733365143,4.08782,2446.3,2445.9,0.816]
[1730733365447,4.08764,2446.4,2445.9,4.90446]
[1730733365728,4.08764,2446.4,2445.9,4.90438]
[1730733365892,4.08764,2446.4,2446.0,4.08827]
[1730733366314,4.08764,2446.4,2445.9,4.90436]
[1730733366518,4.91329326,2446.4,2445.9,4.90436]
[1730733366838,4.08785,2446.3,2445.9,4.90436]
[1730733367019,4.08815,2446.1,2445.9,0.816]
[1730733367329,4.08815,2446.1,2445.7,4.08875]
[1730733367330,4.08815,2446.1,2445.7,0.7578]
[1730733367483,4.1696126,2446.1,2445.7,0.7578]
[1730733367686,4.1696126,2446.1,2445.5,3.0]
[1730733367687,4.08849,2445.9,2445.5,3.0]
[1730733367990,4.08849,2445.9,2445.4,8.93622]
[1730733368191,4.08849,2445.9,2445.4,4.84699]
[1730733368389,4.08849,2445.9,2445.5,4.08912]
[1730733368589,4.08833,2446.0,2445.4,4.84699]
[1730733368590,4.08831,2446.0,2445.4,4.84699]
[1730733368802,4.08831,2446.0,2445.4,0.7578]
[1730733368803,0.65924303,2446.0,2445.4,0.7578]
[1730733369049,0.55,2445.9,2445.1,0.7995]
[1730733369329,4.0888,2445.7,2445.1,4.88929]
[1730733369642,4.08907,2445.6,2445.1,4.88916]
[1730733370343,4.08966,2445.2,2444.8,0.7898]
[1730733370488,4.09007,2445.0,2444.5,0.8117]
[1730733370689,4.1716226,2444.9,2444.5,5.13277797]
[1730733370933,8.18015,2445.0,2444.5,4.90251]
[1730733371344,4.1716926,2444.9,2444.5,0.8117]
[1730733371507,0.0814626,2444.9,2444.5,0.8117]
[1730733371833,4.08947,2445.3,2444.6,0.08180433]
[1730733372142,4.08947,2445.3,2444.5,5.43962437]
[1730733372143,4.99696786,2445.3,2444.8,4.09021]
[1730733372437,4.08942,2445.4,2444.8,0.08179719]
[1730733372640,4.08967,2445.2,2444.8,4.0903]
[1730733373132,4.1714326,2445.1,2444.5,0.8117]
[1730733373317,4.08997,2445.1,2444.6,4.09055]
[1730733373492,0.8129,2445.5,2445.0,4.89207]
[1730733373831,4.08883,2445.7,2445.0,4.89207]
[1730733373832,4.08883,2445.7,2445.3,4.08939]
[1730733374189,4.08883,2445.7,2445.2,8.17918]
[1730733374388,0.8856626,2445.8,2445.0,0.8022]
[1730733374389,0.0814626,2445.8,2445.0,0.8022]
[1730733374640,0.0814626,2445.8,2445.4,4.08916]
[1730733374854,1.68129426,2446.1,2445.5,4.08913]
[1730733374855,4.08832,2446.0,2445.5,4.08913]
[1730733375012,5.76956426,2446.1,2445.5,4.08913]
[1730733375013,0.0814626,2445.9,2445.6,4.08885]
[1730733375191,4.9467326,2446.1,2445.6,4.08885]
[1730733375554,4.0876,2446.5,2445.8,4.08854]
[1730733375724,0.7535,2446.7,2446.3,4.08772]
[1730733375893,4.08715,2446.7,2446.3,4.08772]
[1730733376092,4.1684426,2446.8,2446.3,4.08772]
[1730733376307,4.08722,2446.7,2446.2,4.08793]
[1730733376511,0.0814626,2446.6,2446.2,4.08793]
[1730733376723,4.08722,2446.7,2446.2,4.08793]
[1730733376923,0.0814626,2446.6,2446.2,4.08788]
[1730733377127,4.08739,2446.6,2446.0,8.71612437]
[1730733377333,4.08739,2446.6,2446.0,4.08828]
[1730733377334,4.08749,2446.5,2446.0,4.08828]
[1730733377519,4.08749,2446.5,2446.1,4.08813]
[1730733377720,4.08749,2446.5,2445.9,4.86289]
[1730733377721,4.9597326,2446.5,2445.9,4.86289]
[1730733378042,4.93185528,2447.1,2446.1,4.08814]
[1730733378043,8.2559926,2446.7,2446.1,4.08814]
[1730733378222,4.0873,2446.6,2446.2,4.08797]
[1730733378536,4.08723,2446.7,2446.2,4.08797]
[1730733378839,4.08647,2447.1,2446.6,4.08719]
[1730733378991,4.1679326,2447.1,2446.6,4.08719]
[1730733379997,8.2545426,2447.1,2446.6,4.08719]
[1730733380203,4.08647,2447.1,2446.6,4.08719]
[1730733380401,4.08647,2447.1,2446.7,4.08708]
[1730733380649,4.98950926,2447.1,2446.6,4.08719]
[1730733380804,0.0814626,2447.0,2446.6,4.08719]
[1730733381135,4.08647,2447.1,2446.6,4.16892752]
[1730733381341,4.08663,2447.0,2446.6,0.08173746]
[1730733381574,5.07116886,2447.0,2446.5,4.84456]
[1730733381701,5.07116886,2447.0,2446.2,0.01]
[1730733381702,0.98453886,2447.0,2446.2,0.7737]
[1730733381901,0.0814626,2447.0,2446.3,3.0]
[1730733382139,4.08724,2446.7,2446.3,3.0]
[1730733382744,4.08738,2446.6,2446.2,0.7737]
[1730733382904,4.88464,2446.7,2446.2,3.85545095]
[1730733383239,0.7974,2446.7,2446.3,4.08773]
[1730733383450,4.08659,2447.1,2446.4,4.16927496]
[1730733383606,4.08659,2447.1,2446.6,4.08721]
[1730733384001,0.0814626,2447.0,2446.6,4.08721]
[1730733384205,4.08627,2447.3,2446.8,4.08697]
[1730733384415,0.7974,2447.4,2446.8,4.08685]
[1730733384617,1.28573,2447.4,2446.8,0.0817326]
[1730733384919,1.28573,2447.4,2446.9,4.0868]
[1730733384920,4.6558726,2447.4,2446.9,4.0868]
[1730733385551,4.6558726,2447.4,2446.6,4.62792437]
[1730733385552,4.08657,2447.1,2446.6,4.08714]
[1730733385758,0.0814626,2447.1,2446.6,4.08729]
[1730733386072,0.0814626,2447.1,2446.3,5.41252437]
[1730733386215,0.48833,2447.4,2446.3,5.41252437]
[1730733386216,4.1674326,2447.4,2446.9,4.08672]
[1730733386748,4.1674326,2447.4,2447.0,4.08661]
[1730733386976,0.7855,2447.6,2447.0,4.08661]
[1730733386977,4.08581,2447.5,2447.0,4.08661]
[1730733387152,4.08581,2447.5,2446.9,4.08679]
[1730733387153,4.1674526,2447.4,2446.9,4.08679]
[1730733387354,4.08581,2447.5,2446.9,4.08679]
[1730733387527,4.6546736,2447.4,2446.9,4.08679]
[1730733387940,8.7407936,2447.4,2446.9,4.08679]
[1730733388137,0.8182,2447.1,2446.4,4.08753]
[1730733388375,0.8182,2447.1,2446.3,4.62792437]
[1730733388376,0.0814626,2447.0,2446.3,8.44442437]
[1730733388525,1.305331,2447.4,2446.3,8.44442437]
[1730733388526,4.08622,2447.3,2446.8,4.08689]
[1730733388724,4.90432,2447.4,2446.9,4.08677]
[1730733388973,9.0718426,2447.4,2446.9,4.08677]
[1730733389130,4.90427,2447.4,2446.9,0.0817254]
[1730733389331,4.08607,2447.4,2447.0,4.08662]
[1730733389560,4.08607,2447.4,2446.9,4.0868]
[1730733389763,4.08604,2447.4,2446.9,4.0868]
[1730733390276,4.08619,2447.3,2446.9,4.0868]
[1730733390428,4.08604,2447.4,2446.9,4.16852542]
[1730733390637,4.08575,2447.6,2446.9,4.62792437]
[1730733390983,4.08575,2447.6,2447.0,4.08661]
[1730733391270,4.0858,2447.5,2447.0,4.08661]
[1730733391453,4.08575,2447.6,2447.1,4.08634]
[1730733391661,4.1672126,2447.6,2447.2,4.08623]
[1730733391859,4.08575,2447.6,2447.2,4.08623]
[1730733392045,4.08575,2447.6,2447.0,4.0865]
[1730733392385,4.08541,2447.8,2447.4,4.08595]
[1730733392586,4.08541,2447.8,2447.2,4.88507]
[1730733393070,4.08541,2447.8,2447.3,4.08611]
[1730733393283,4.1665926,2447.9,2447.4,4.08583]
[1730733393569,4.08513,2447.9,2447.4,4.08583]
[1730733394085,4.08513,2447.9,2447.5,4.08577]
[1730733394235,4.08531,2447.8,2447.3,4.08605]
[1730733394449,4.08531,2447.8,2447.4,4.08594]
[1730733394657,4.08563,2447.6,2447.2,4.88509]
[1730733394963,4.08531,2447.8,2447.2,8.97122]
[1730733394964,4.08548,2447.7,2447.2,8.97122]
[1730733395274,4.08531,2447.8,2447.3,0.08170949]
[1730733395444,4.08531,2447.8,2447.4,4.08588]
[1730733395651,4.08468,2448.2,2447.7,4.08535]
[1730733395846,4.08405,2448.6,2448.1,4.08478]
[1730733395847,4.08403,2448.6,2448.1,4.08478]
[1730733396104,4.1649926,2448.9,2448.3,4.08436]
[1730733396393,4.8884,2449.0,2448.5,4.08405]
[1730733396555,4.08356,2448.9,2448.4,4.0842]
[1730733396750,0.0604162,2449.1,2448.8,4.08356]
[1730733396982,0.0604162,2449.1,2448.8,4.62792437]
[1730733397159,0.0604162,2449.1,2448.9,0.08165788]
[1730733397360,0.0604162,2449.1,2448.8,8.71153437]
[1730733397825,0.0604162,2449.1,2448.8,8.71144437]
[1730733398004,0.0604162,2449.1,2449.0,3.0]
[1730733398219,0.0604162,2449.1,2448.6,4.83826]
[1730733398507,0.0604162,2449.1,2448.8,4.08359]
[1730733399008,0.0604162,2449.1,2448.9,0.08165895]
[1730733399567,0.0604162,2449.1,2449.0,4.08329]
[1730733399882,0.0604162,2449.1,2449.0,7.86349]
[1730733400600,0.0604162,2449.1,2449.0,3.7802]
[1730733400912,0.0604162,2449.1,2449.0,7.86349]
[1730733401261,0.0604162,2449.1,2449.0,7.94514218]
[1730733401464,0.0604162,2449.1,2449.0,7.86349]
[1730733405126,0.0604162,2449.1,2448.9,4.08343]
[1730733405127,0.0604162,2449.1,2448.9,3.0]
[1730733405289,0.0604162,2449.1,2448.7,3.81562346]
[1730733405290,4.08339,2449.0,2448.7,3.81562346]
[1730733405479,4.1435562,2449.1,2448.7,3.89728828]
[1730733405682,4.08338,2449.0,2448.7,3.81562346]
[1730733406122,4.1435562,2449.1,2448.7,3.81562346]
[1730733406123,8.2267762,2449.1,2448.7,3.81562346]
[1730733406280,4.1435562,2449.1,2448.7,3.81562346]
[1730733406619,4.1435562,2449.1,2448.8,0.08166352]
[1730733406914,0.0604162,2449.1,2448.8,0.08166352]
[1730733407225,0.0604162,2449.1,2448.8,4.16528352]
[1730733407392,0.0604162,2449.1,2449.0,4.08329]
[1730733407580,0.0604162,2449.1,2448.9,4.90511]
[1730733407992,0.0604162,2449.1,2449.0,4.16494668]
[1730733408190,0.0604162,2449.1,2449.0,7.08329]
[1730733410434,0.0604162,2449.1,2449.0,3.0]
[1730733412929,0.0604162,2449.1,2448.8,7.08359]
[1730733413524,0.0604162,2449.1,2449.0,3.0]
[1730733413661,0.0604162,2449.1,2448.8,4.08359]
[1730733413662,4.1435462,2449.1,2448.8,3.0]
[1730733413865,4.08343,2449.0,2448.8,3.0]
[1730733414160,4.08343,2449.0,2448.7,3.81562346]
[1730733414161,4.83963,2448.8,2448.7,3.81562346]
[1730733414360,4.83963,2448.8,2447.9,4.085]
[1730733414361,4.9210926,2448.8,2447.9,4.085]
[1730733414607,4.9210926,2448.8,2448.0,0.22894931]
[1730733414608,4.08401,2448.6,2448.0,0.22894931]
[1730733414761,4.08433,2448.4,2448.0,4.31381931]
[1730733415108,4.08433,2448.4,2447.9,4.08512]
[1730733415258,8.16875,2448.4,2448.0,0.22906663]
[1730733415463,8.16875,2448.4,2447.9,4.08512]
[1730733415696,4.08433,2448.4,2447.9,4.08512]
[1730733415886,0.8409626,2448.3,2447.6,4.0855]
[1730733416077,0.8409626,2448.3,2447.7,0.22909333]
[1730733416078,4.08468,2448.2,2447.7,0.22909333]
[1730733416276,4.08488,2448.1,2447.8,0.22909333]
[1730733416505,4.08488,2448.1,2447.6,4.0855]
[1730733416797,4.08488,2448.1,2447.7,4.31466581]
[1730733416997,4.08488,2448.1,2447.6,4.0855]
[1730733416998,4.08488,2448.1,2447.8,0.22921581]
[1730733417301,4.0847,2448.2,2447.9,0.22931886]
[1730733417603,4.1661726,2448.2,2447.8,4.31458886]
[1730733417899,4.84405,2448.3,2447.8,4.16696476]
[1730733418208,4.84405,2448.3,2447.9,4.31444465]
[1730733418500,4.84405,2448.3,2448.0,0.22932465]
[1730733418702,8.92864,2448.3,2447.9,0.22946041]
[1730733419002,0.7595,2448.3,2448.0,0.22946286]
[1730733419303,0.7595,2448.3,2448.1,0.22957442]
[1730733419617,0.0814626,2448.4,2448.0,0.22959213]
[1730733419764,0.8081,2448.6,2448.2,4.0845]
[1730733420079,0.8081,2448.6,2448.1,4.83572]
[1730733420278,0.8081,2448.6,2448.2,0.22954919]
[1730733420279,4.08446,2448.3,2448.2,0.22954919]
[1730733420461,4.08431,2448.4,2447.9,3.36752888]
[1730733420661,4.08381,2448.7,2448.0,0.31139734]
[1730733420864,4.08376,2448.8,2448.3,4.08438]
[1730733421100,4.08372,2448.8,2448.3,4.08438]
[1730733421272,4.08405,2448.6,2448.2,3.0]
[1730733421607,4.0837,2448.8,2448.3,0.31147416]
[1730733421923,4.0837,2448.8,2448.4,0.22979343]
[1730733422063,4.08381,2448.7,2448.3,0.08168073]
[1730733422267,4.08381,2448.7,2448.4,0.22995069]
[1730733422495,4.08381,2448.7,2448.5,0.22995069]
[1730733422764,4.0846,2448.3,2447.8,4.83526]
[1730733423066,4.9411226,2448.5,2447.9,7.68299108]
[1730733423281,4.9411226,2448.5,2448.0,0.59799108]
[1730733423481,4.08398,2448.6,2448.2,4.08462]
[1730733423709,4.08398,2448.6,2448.3,0.22998962]
[1730733423880,4.08413,2448.5,2448.4,0.22998962]
[1730733424095,4.08463,2448.2,2448.1,0.3682143]
[1730733424296,4.0853,2447.8,2447.4,0.36842961]
[1730733424515,8.1707,2447.8,2447.5,0.59869913]
[1730733424827,8.1707,2447.8,2447.6,0.59869913]
[1730733424828,4.0853,2447.8,2447.6,0.59869913]
[1730733425010,4.08509,2448.0,2447.7,0.59869913]
[1730733425011,4.08514,2447.9,2447.7,0.59869913]
[1730733425178,4.08514,2447.9,2447.4,4.08594]
[1730733425179,4.08514,2447.9,2447.8,0.23026952]
[1730733425623,4.85661,2448.2,2447.8,0.23026952]
[1730733425809,4.08497,2448.0,2447.9,0.23026952]
[1730733426014,4.98728626,2448.0,2447.9,0.23026952]
[1730733426328,4.08563,2447.6,2447.3,3.81562346]
[1730733426533,4.08542,2447.8,2447.3,3.81562346]
[1730733426534,4.08542,2447.8,2447.6,0.23029732]
[1730733426692,4.08498,2448.0,2447.4,0.3684953]
[1730733427029,4.0844,2448.4,2447.8,4.08519]
[1730733427194,0.7788,2448.5,2448.0,4.08482]
[1730733427396,0.7788,2448.5,2448.1,4.31497528]
[1730733427582,0.7788,2448.5,2448.2,0.23026528]
[1730733427919,4.08488,2448.1,2447.5,4.8977]
[1730733428119,0.0814626,2448.4,2447.8,3.0]
[1730733428120,4.0846,2448.3,2447.8,3.0]
[1730733428368,0.0814626,2448.2,2447.9,0.59855547]
[1730733428567,0.0814626,2448.2,2447.8,3.0]
[1730733428568,4.08481,2448.1,2448.0,0.23020669]
[1730733429351,4.57908626,2448.3,2448.0,0.23020669]
[1730733429674,4.08456,2448.3,2447.9,4.45339114]
[1730733429972,4.08456,2448.3,2448.0,3.23015621]
[1730733430273,4.08456,2448.3,2447.9,4.08511]
[1730733430274,8.16911,2448.3,2448.1,0.23015621]
[1730733430481,8.16911,2448.3,2447.9,3.0]
[1730733430685,4.08389,2448.7,2448.1,3.7859]
[1730733430831,4.9190826,2448.8,2448.3,4.08439]
[1730733431031,4.83762,2448.8,2448.4,0.2301576]
[1730733431237,0.8353626,2448.8,2448.5,0.2301576]
[1730733431436,9.0219062,2449.1,2448.6,4.3140376]
[1730733431748,0.0814626,2449.0,2448.5,0.36826394]
[1730733432079,0.0814626,2449.0,2447.8,8.71320437]
[1730733432080,4.08441,2448.4,2448.2,0.36824857]
[1730733432372,4.1654026,2448.7,2448.3,0.23019078]
[1730733432577,4.1654026,2448.7,2448.4,0.23019078]
[1730733432578,4.0842,2448.5,2448.4,0.23019078]
[1730733432765,4.08455,2448.3,2447.9,0.36824857]
[1730733432945,4.08471,2448.2,2448.0,0.2302375]
[1730733433144,4.08471,2448.2,2447.7,4.08539]
[1730733433145,4.1661726,2448.2,2447.9,0.36841696]
[1730733433461,4.08471,2448.2,2448.0,0.23027429]
[1730733433781,4.58000026,2448.6,2448.0,0.23027429]
[1730733433782,4.08405,2448.6,2448.1,4.31502075]
[1730733434078,4.08396,2448.6,2448.1,7.16631771]
[1730733434230,4.85567,2448.9,2448.4,4.0842]
[1730733434453,4.85567,2448.9,2448.2,4.86692]
[1730733434454,4.08407,2448.6,2448.2,4.86692]
[1730733434631,4.08436,2448.4,2448.3,0.23031076]
[1730733434931,4.08403,2448.6,2448.3,0.23031076]
[1730733435130,4.08403,2448.6,2448.2,7.4530351]
[1730733435366,4.1654926,2448.6,2448.2,3.0]
[1730733435546,4.1654926,2448.6,2448.3,0.23033829]
[1730733435744,4.1654926,2448.6,2448.2,3.36855936]
[1730733436048,4.1654926,2448.6,2448.3,0.23033829]
[1730733436251,4.1654926,2448.6,2448.2,3.0]
[1730733436481,4.08413,2448.5,2448.3,0.23035062]
[1730733436698,4.08413,2448.5,2448.2,3.0]
[1730733436847,4.1654426,2448.6,2448.3,0.2303624]
[1730733437051,4.1654426,2448.6,2448.2,7.0846]
[1730733437380,0.0814626,2448.6,2448.3,0.23036872]
[1730733437580,4.1655126,2448.6,2448.2,7.08457]
[1730733437747,4.1655126,2448.6,2448.3,0.23040702]
[1730733437748,4.08397,2448.6,2448.3,0.23040702]
[1730733437951,4.08397,2448.6,2448.2,0.36866932]
[1730733437952,4.08431,2448.4,2448.0,7.45359932]
[1730733438150,4.08431,2448.4,2448.1,0.59906971]
[1730733438450,4.08411,2448.6,2448.2,0.23040039]
[1730733438652,4.08446,2448.4,2448.3,0.23049234]
[1730733438890,0.0814626,2448.6,2447.9,7.86746]
[1730733438891,4.08423,2448.5,2448.2,0.23049535]
[1730733439042,8.1685,2448.5,2448.1,3.0]
[1730733439241,4.08413,2448.5,2448.1,3.0]
[1730733439444,4.08413,2448.5,2448.2,0.23053748]
[1730733439776,4.08413,2448.5,2448.1,7.45360807]
[1730733439777,4.08413,2448.5,2448.3,0.23053748]
[1730733439978,4.08413,2448.5,2448.1,7.45360807]
[1730733440132,0.0814626,2448.6,2448.2,0.23056058]
[1730733440339,4.9371026,2448.9,2448.4,4.08414]
[1730733440637,4.9371026,2448.9,2448.5,0.23056058]
[1730733440638,0.8535626,2448.9,2448.5,0.23056058]
[1730733440882,4.08387,2448.7,2448.3,0.36905606]
[1730733441038,4.1654426,2448.6,2448.4,0.23066463]
[1730733441238,0.0814626,2448.6,2448.3,4.08439]
[1730733441576,4.1653026,2448.7,2448.3,4.08439]
[1730733441874,4.08373,2448.8,2448.4,0.23078411]
[1730733442076,4.1651926,2448.8,2448.5,0.23078411]
[1730733442285,4.9371126,2448.9,2448.4,7.90601]
[1730733442480,0.0814626,2448.9,2448.6,4.08388]
[1730733442637,4.1436462,2449.1,2448.8,4.08363]
[1730733442638,0.0604162,2449.1,2448.8,4.08363]
[1730733442833,0.0604162,2449.1,2448.4,0.8218]
[1730733442834,0.0604162,2449.1,2448.9,7.31428281]
[1730733443077,0.0604162,2449.1,2449.0,4.3141576]
[1730733443301,0.0604162,2449.1,2449.0,7.3141576]
[1730733443508,0.0604162,2449.1,2449.0,7.68357216]
[1730733444812,0.0604162,2449.1,2449.0,3.60028216]
[1730733445164,0.0604162,2449.1,2449.0,7.68357216]
[1730733445683,0.0604162,2449.1,2449.0,7.76473683]
[1730733445890,0.0604162,2449.1,2449.0,7.68307896]
[1730733446167,0.0604162,2449.1,2449.0,7.76473158]
[1730733446473,0.0604162,2449.1,2449.0,7.3141576]
[1730733446858,0.0604162,2449.1,2449.0,7.76452289]
[1730733447273,0.0604162,2449.1,2449.0,7.39581024]
[1730733447476,0.0604162,2449.1,2449.0,7.3141576]
[1730733449564,0.0604162,2449.1,2449.0,7.08329]
[1730733449764,0.0604162,2449.1,2449.0,7.31351252]
[1730733450393,0.0604162,2449.1,2449.0,7.91514273]
[1730733450582,0.0604162,2449.1,2449.0,7.83349]
[1730733451207,0.0604162,2449.1,2449.0,8.14532733]
[1730733452038,0.0604162,2449.1,2449.0,8.14532735]
[1730733452242,0.0604162,2449.1,2449.0,8.06367467]
[1730733452449,0.0604162,2449.1,2449.0,8.14532738]
[1730733452739,0.0604162,2449.1,2449.0,7.9151426]
[1730733452896,0.0604162,2449.1,2449.0,8.06355091]
[1730733453096,0.0604162,2449.1,2449.0,8.14520358]
[1730733453335,0.0604162,2449.1,2449.0,7.91514267]
[1730733453533,0.0604162,2449.1,2449.0,7.83349]
[1730733453718,0.0604162,2449.1,2449.0,8.06351162]
[1730733454136,0.0604162,2449.1,2449.0,7.83349]
[1730733454577,0.0604162,2449.1,2449.0,8.06349906]
[1730733455176,0.0604162,2449.1,2449.0,7.91513977]
[1730733455461,0.0604162,2449.1,2449.0,8.06354203]
[1730733455661,0.0604162,2449.1,2449.0,7.83349]
[1730733456380,0.0604162,2449.1,2448.9,3.0]
[1730733456573,0.0604162,2449.1,2448.3,4.08439]
[1730733456574,0.8035,2449.0,2448.3,4.08439]
[1730733456883,0.8035,2449.0,2448.2,0.42665044]
[1730733456884,4.08379,2448.8,2448.2,0.42665044]
[1730733457026,4.0837,2448.8,2448.3,4.08442]
[1730733457227,4.88694,2449.0,2448.1,0.7783]
[1730733457228,4.08421,2448.5,2448.1,0.7783]
[1730733457527,0.7749,2448.5,2448.2,4.08456]
[1730733457753,4.08378,2448.8,2448.3,4.08446]
[1730733457754,4.85868,2448.8,2448.3,4.08446]
[1730733457958,4.08406,2448.6,2448.1,4.08471]
[1730733458466,4.85854,2448.8,2448.4,4.08421]
[1730733458692,4.85854,2448.8,2448.0,0.01]
[1730733458693,0.7749,2448.8,2448.0,0.01]
[1730733458894,4.8586,2448.8,2448.3,4.08439]
[1730733459300,4.1653526,2448.7,2448.4,3.0]
[1730733459489,4.08399,2448.6,2448.3,3.0]
[1730733459902,4.08383,2448.7,2448.3,7.08443]
[1730733460120,4.1652926,2448.7,2448.3,7.08443]
[1730733460315,0.0814626,2448.7,2448.3,7.08443]
[1730733460815,0.7749,2448.8,2448.4,3.23038774]
[1730733460975,0.7749,2448.8,2448.4,7.08422]
[1730733461180,4.9400126,2448.8,2448.4,7.08422]
[1730733461374,4.85855,2448.8,2448.4,7.08422]
[1730733461614,0.8025,2449.0,2448.6,4.08388]
[1730733461799,0.8839626,2449.0,2448.6,4.08388]
[1730733462000,4.9673326,2449.0,2448.6,4.08388]
[1730733462387,4.9673326,2449.0,2448.5,4.08412]
[1730733462837,0.8839626,2449.0,2448.5,4.08405]
[1730733463019,0.8839626,2449.0,2448.5,4.08407]
[1730733463533,0.8839626,2449.0,2448.4,7.08427]
[1730733463534,4.9672826,2449.0,2448.6,4.08396]
[1730733464334,4.9672826,2449.0,2448.4,7.08427]
[1730733464534,0.8839626,2449.0,2448.3,3.36881455]
[1730733464846,4.08432,2448.4,2448.0,4.08486]
[1730733465029,4.08432,2448.4,2447.9,1.24343801]
[1730733465030,0.7948,2448.3,2448.1,0.23052516]
[1730733465194,0.7948,2448.3,2448.0,0.23052516]
[1730733465391,0.7948,2448.3,2448.1,4.08477]
[1730733465638,4.83407,2448.6,2448.2,4.08454]
[1730733465881,4.1656026,2448.5,2448.1,4.08477]
[1730733466201,0.0814626,2448.5,2448.2,3.0]
[1730733466397,4.83407,2448.6,2448.2,7.08454]
[1730733467639,4.08375,2448.8,2448.3,4.31518729]
[1730733467844,4.08399,2448.6,2448.2,4.08449]
[1730733468137,0.0814626,2448.8,2448.3,3.0]
[1730733468138,4.08395,2448.7,2448.3,3.0]
[1730733468502,8.1679,2448.7,2448.3,3.0]
[1730733468701,8.16784,2448.7,2448.3,3.0]
[1730733468937,4.08389,2448.7,2448.3,7.08435]
[1730733470748,0.0814626,2448.8,2448.3,7.08435]
[1730733470951,0.8009,2448.9,2448.6,4.08395]
[1730733471234,4.08338,2449.0,2448.5,7.08405]
[1730733471419,4.1648426,2449.0,2448.5,7.08405]
[1730733471625,4.1648426,2449.0,2448.6,0.23085456]
[1730733471820,0.0814626,2449.0,2448.6,4.3147863]
[1730733472035,0.0814626,2449.0,2448.6,4.08393]
[1730733472036,4.1647626,2449.0,2448.6,4.08393]
[1730733472339,4.2250288,2449.1,2448.7,4.08378]
[1730733472512,4.08337,2449.0,2448.6,4.08394]
[1730733472708,4.2250388,2449.1,2448.6,4.08387]
[1730733473034,4.08353,2448.9,2448.5,3.0]
[1730733473240,4.0837,2448.8,2448.5,3.0]
[1730733473487,4.0837,2448.8,2448.1,4.08468]
[1730733473488,0.0814626,2448.7,2448.1,4.08468]
[1730733473613,0.7766,2448.9,2448.3,4.08433]
[1730733473814,4.08363,2448.8,2448.2,8.16916]
[1730733474044,4.08397,2448.6,2448.2,4.08453]
[1730733474358,0.0814626,2448.7,2448.3,4.08445]
[1730733474510,0.0814626,2448.7,2448.2,4.08453]
[1730733474856,4.08413,2448.6,2448.1,4.08478]
[1730733475157,0.8702626,2448.5,2448.2,3.0]